[Event "XLII San Sebastian Open 2019"]
[Site "San Sebastian"]
[Date "2019.04.16"]
[Round "5.7"]
[White "Perez Gonzalez, Jose Manuel"]
[Black "De La Esperanza Martin, Alberto"]
[Result "1-0"]
[ECO "C55"]
[WhiteElo "2231"]
[BlackElo "2069"]
[Annotator "ChessBase"]
[PlyCount "105"]
[EventDate "2019.04.13"]
[EventType "swiss"]
[EventCountry "ESP"]
[SourceTitle "playchess.com"]
[Source "ChessBase"]
[SourceQuality "1"]
[TimeControl "5400+30"]

1. e4 {[%emt 0:00:00]} e5 {[%emt 0:00:00]} 2. Nf3 {[%emt 0:00:00]} Nc6 {[%emt 0:00:00]} 3. Bc4 {[%emt 0:00:02]} Bc5 {[%emt 0:00:14]} 4. O-O {[%emt 0:01:23]} Nf6 {[%emt 0:00:06]} 5. d4 exd4 {[%emt 0:03:19]} 6. e5 {[%emt 0:00:34]} d5 {[%emt 0:00:33]} 7. exf6 {[%emt 0:00:12]} dxc4 {[%emt 0:00:09]} 8. Re1+ {[%emt 0:00:06]} Be6 {[%emt 0:05:51]} 9. Ng5 {[%emt 0:00:06]} Qd5 {[%emt 0:01:02]} 10. Nc3 {[%emt 0:00:14]} Qf5 {[%emt 0:00:23]} 11. Nce4 {[%emt 0:01:20]} Bf8 {[%emt 0:18:35]} 12. Nxf7 {[%emt 0:10:27]} Kxf7 {[%emt 0:02:04]} 13. Ng5+ {[%emt 0:00:16]} Kg8 {[%emt 0:06:28]} 14. Nxe6 {[%emt 0:10:45]} gxf6 {[%emt 0:01:07]} 15. Nxd4 {[%emt 0:01:11]} Nxd4 {[%emt 0:00:02]} 16. Qxd4 {[%emt 0:00:09]} Bc5 {[%emt 0:00:57]} 17. Qxc4+ {[%emt 0:00:13]} Kg7 {[%emt 0:00:05]} 18. Be3 {[%emt 0:13:12]} Bd6 {[%emt 0:00:52]} 19. Rad1 {[%emt 0:02:12]} Rad8 {[%emt 0:01:19]} 20. g3 {[%emt 0:18:20]} Rhe8 {[%emt 0:05:02]} 21. Rd5 {[%emt 0:00:55]} Qf3 {[%emt 0:01:36]} 22. Qd3 {[%emt 0:00:44]} Kh8 {[%emt 0:11:24]} 23. Qf5 {[%emt 0:04:13]} Qxf5 {[%emt 0:00:58]} 24. Rxf5 {[%emt 0:00:05]} Be5 {[%emt 0:00:29]} 25. c3 {[%emt 0:06:45]} Kg7 {[%emt 0:00:05]} 26. Rf3 {[%emt 0:02:58]} b6 {[%emt 0:06:06]} 27. Kf1 {[%emt 0:00:55]} a5 {[%emt 0:01:44]} 28. Bf4 {[%emt 0:00:55]} Bxf4 {[%emt 0:00:15]} 29. Rxe8 {[%emt 0:01:03]} Rxe8 {[%emt 0:00:00]} 30. Rxf4 {[%emt 0:00:08]} h5 {[%emt 0:00:19]} 31. f3 {[%emt 0:01:23]} Kg6 {[%emt 0:00:48]} 32. Re4 {[%emt 0:03:26]} Rd8 {[%emt 0:00:01]} 33. Ke2 {[%emt 0:00:19]} Rd7 {[%emt 0:00:02]} 34. h4 {[%emt 0:01:26]} Kf5 {[%emt 0:01:47]} 35. a4 {[%emt 0:05:54]} Rg7 {[%emt 0:00:30]} 36. Kf2 {[%emt 0:00:10]} Rd7 {[%emt 0:00:09]} 37. Rd4 {[%emt 0:00:16]} Re7 {[%emt 0:00:34]} 38. Rd5+ {[%emt 0:00:44]} Kg6 {[%emt 0:00:01]} 39. b4 {[%emt 0:00:33]} axb4 {[%emt 0:02:09]} 40. cxb4 {[%emt 0:01:28]} Re6 {[%emt 0:03:25]} 41. a5 {[%emt 0:01:50]} bxa5 {[%emt 0:00:52]} 42. bxa5 {[%emt 0:00:09]} Rc6 {[%emt 0:00:10]} 43. Rd2 {[%emt 0:00:35]} Ra6 {[%emt 0:00:24]} 44. Ra2 {[%emt 0:00:05]} Kf5 {[%emt 0:07:31]} 45. Ke3 {[%emt 0:00:22]} Ke5 {[%emt 0:00:35]} 46. g4 {[%emt 0:00:15]} hxg4 {[%emt 0:00:26]} 47. fxg4 {[%emt 0:00:05]} f5 {[%emt 0:04:07]} 48. g5 {[%emt 0:02:51]} c5 {[%emt 0:01:02]} 49. h5 {[%emt 0:00:21]} f4+ {[%emt 0:00:12]} 50. Kf3 {[%emt 0:00:06]} Kf5 {[%emt 0:00:15]} 51. g6 {[%emt 0:00:19]} Ra8 {[%emt 0:01:24]} 52. g7 Kg5 53. Ke4 1-0

[Event "XLII San Sebastian Open 2019"]
[Site "San Sebastian"]
[Date "2019.04.16"]
[Round "5.8"]
[White "Manelidou, Maria"]
[Black "Safranska, Anda"]
[Result "0-1"]
[ECO "B00"]
[WhiteElo "2072"]
[BlackElo "2167"]
[Annotator "ChessBase"]
[PlyCount "98"]
[EventDate "2019.04.13"]
[EventType "swiss"]
[EventCountry "ESP"]
[SourceTitle "playchess.com"]
[Source "ChessBase"]
[SourceQuality "1"]
[TimeControl "5400+30"]

1. e4 {[%emt 0:00:00]} Nc6 {[%emt 0:00:00]} 2. d4 {[%emt 0:03:08]} d5 {[%emt 0:00:00]} 3. e5 {[%emt 0:01:32]} Bf5 {[%emt 0:00:00]} 4. c3 {[%emt 0:01:37]} e6 {[%emt 0:00:03]} 5. Bd3 {[%emt 0:00:17]} Nge7 {[%emt 0:00:07]} 6. Ne2 {[%emt 0:03:53]} f6 {[%emt 0:01:14]} 7. exf6 {[%emt 0:01:01]} gxf6 {[%emt 0:00:06]} 8. Bxf5 {[%emt 0:02:14]} Nxf5 {[%emt 0:00:23]} 9. Ng3 {[%emt 0:08:49]} Nd6 {[%emt 0:04:32]} 10. Qh5+ {[%emt 0:04:29]} Kd7 {[%emt 0:04:16]} 11. O-O {[%emt 0:01:34]} Qe7 {[%emt 0:04:24]} 12. Bf4 {[%emt 0:06:23]} Rd8 {[%emt 0:02:48]} 13. Nd2 {[%emt 0:03:17]} Kc8 {[%emt 0:02:56]} 14. Rfe1 {[%emt 0:00:49]} Qd7 {[%emt 0:01:01]} 15. Re2 {[%emt 0:04:50]} Re8 {[%emt 0:01:26]} 16. Rae1 {[%emt 0:03:32]} Nd8 {[%emt 0:01:18]} 17. Ndf1 {[%emt 0:10:15]} Re7 {[%emt 0:14:43]} 18. Ne3 {[%emt 0:04:24]} Rf7 {[%emt 0:01:36]} 19. Ng4 {[%emt 0:06:50]} Rg8 {[%emt 0:00:59]} 20. Nh6 {[%emt 0:05:12]} Bxh6 {[%emt 0:00:34]} 21. Qxh6 {[%emt 0:02:09]} Rg6 {[%emt 0:05:17]} 22. Qh3 {[%emt 0:00:27]} b6 {[%emt 0:04:06]} 23. f3 {[%emt 0:03:41]} Kb7 {[%emt 0:01:08]} 24. Nh5 {[%emt 0:02:03]} Nf5 {[%emt 0:04:53]} 25. Bc1 {[%emt 0:01:59]} e5 {[%emt 0:00:35]} 26. dxe5 {[%emt 0:03:27]} fxe5 {[%emt 0:11:28]} 27. Rxe5 {[%emt 0:03:18]} Nc6 {[%emt 0:01:00]} 28. R5e2 {[%emt 0:02:33]} Nfd4 {[%emt 0:00:27]} 29. Qxd7 {[%emt 0:00:10]} Nxe2+ {[%emt 0:00:05]} 30. Rxe2 {[%emt 0:00:04]} Rxd7 {[%emt 0:00:04]} 31. Be3 {[%emt 0:03:25]} d4 {[%emt 0:00:58]} 32. Bxd4 {[%emt 0:00:12]} Nxd4 {[%emt 0:00:05]} 33. cxd4 {[%emt 0:00:04]} Rxd4 {[%emt 0:00:09]} 34. g4 {[%emt 0:00:37]} Kc6 {[%emt 0:02:10]} 35. h3 {[%emt 0:00:27]} Kd7 {[%emt 0:00:32]} 36. f4 {[%emt 0:00:42]} Re6 {[%emt 0:00:07]} 37. Kf2 {[%emt 0:01:55]} Rd3 {[%emt 0:03:11]} 38. h4 {[%emt 0:01:44]} Rh3 {[%emt 0:02:01]} 39. Rd2+ {[%emt 0:01:17]} Ke7 {[%emt 0:07:38]} 40. Kg2 {[%emt 0:00:19]} Rxh4 {[%emt 0:03:31]} 41. Kg3 {[%emt 0:00:19]} Rh1 {[%emt 0:00:21]} 42. f5 {[%emt 0:00:35]} Rd6 {[%emt 0:01:57]} 43. Re2+ {[%emt 0:00:27]} Kf7 {[%emt 0:01:17]} 44. f6 {[%emt 0:00:58]} Rd7 {[%emt 0:00:25]} 45. Kf4 {[%emt 0:01:04]} h6 {[%emt 0:00:52]} 46. Ke5 {[%emt 0:01:11]} Rhd1 {[%emt 0:01:01]} 47. Rh2 {[%emt 0:01:48]} R7d2 {[%emt 0:00:48]} 48. Rh3 {[%emt 0:00:26]} Re2+ {[%emt 0:00:57]} 49. Kf5 {[%emt 0:00:18]} Rf1+ 0-1

[Event "XLII San Sebastian Open 2019"]
[Site "San Sebastian"]
[Date "2019.04.16"]
[Round "5.9"]
[White "Moreno Estebanez, Patxi"]
[Black "Sanchez Arevalo, Luis"]
[Result "1/2-1/2"]
[ECO "A06"]
[WhiteElo "2153"]
[BlackElo "2020"]
[Annotator "NA"]
[PlyCount "51"]
[EventDate "2019.04.13"]
[EventType "swiss"]
[EventCountry "ESP"]
[SourceTitle "playchess.com"]
[Source "ChessBase"]
[SourceQuality "1"]
[TimeControl "5400+30"]

1. Nf3 {[%emt 0:00:00]} d5 {[%emt 0:00:00]} 2. b3 {[%emt 0:00:00]} Nf6 {[%emt 0:01:20]} 3. Bb2 {[%emt 0:00:00]} e6 {[%emt 0:00:36]} 4. e3 {[%emt 0:00:13]} Be7 {[%emt 0:00:23]} 5. c4 {[%emt 0:00:21]} Nbd7 {[%emt 0:01:06]} 6. Nc3 {[%emt 0:01:13]} c6 {[%emt 0:03:29]} 7. d4 {[%emt 0:03:34]} b6 {[%emt 0:01:34]} 8. Bd3 {[%emt 0:01:35]} Bb7 {[%emt 0:00:22]} 9. O-O {[%emt 0:00:20]} O-O {[%emt 0:00:21]} 10. Qc2 {[%emt 0:22:39]} Rc8 {[%emt 0:03:23]} 11. e4 {[%emt 0:09:25]} dxe4 {[%emt 0:03:04]} 12. Nxe4 {[%emt 0:00:53]} Nxe4 {[%emt 0:00:36]} 13. Bxe4 {[%emt 0:00:05]} Nf6 {[%emt 0:00:12]} 14. Bd3 {[%emt 0:01:13]} c5 {[%emt 0:09:01]} 15. d5 {[%emt 0:20:09]} exd5 {[%emt 0:00:35]} 16. cxd5 {[%emt 0:01:12]} Qxd5 {[%emt 0:08:53]} 17. Rfe1 {[%emt 0:01:31]} Rfe8 {[%emt 0:00:26]} 18. Rad1 {[%emt 0:03:16]} Qc6 {[%emt 0:02:38]} 19. Bxf6 {[%emt 0:10:10]} Bxf6 {[%emt 0:01:06]} 20. Bxh7+ {[%emt 0:00:10]} Kf8 {[%emt 0:01:08]} 21. Bf5 {[%emt 0:00:43]} Rxe1+ {[%emt 0:02:07]} 22. Rxe1 {[%emt 0:00:11]} Re8 {[%emt 0:00:18]} 23. Rd1 {[%emt 0:02:09]} Rd8 {[%emt 0:13:50]} 24. Re1 {[%emt 0:00:49]} Re8 {[%emt 0:01:34]} 25. Rd1 {[%emt 0:00:10]} Rd8 {[%emt 0:00:41]} 26. Re1 {[%emt 0:00:16]} 1/2-1/2

[Event "XLII San Sebastian Open 2019"]
[Site "San Sebastian"]
[Date "2019.04.16"]
[Round "5.10"]
[White "Alfaro Garcia del Cerro, Juan L"]
[Black "Martinez De Soria Gordon, Jose Manuel"]
[Result "1-0"]
[ECO "A40"]
[WhiteElo "2151"]
[BlackElo "1877"]
[Annotator "NA"]
[PlyCount "81"]
[EventDate "2019.04.13"]
[EventType "swiss"]
[EventCountry "ESP"]
[SourceTitle "playchess.com"]
[Source "ChessBase"]
[SourceQuality "1"]
[TimeControl "5400+30"]

1. d4 {[%emt 0:00:00]} Nf6 {[%emt 0:15:31]} 2. c4 {[%emt 0:00:00]} e6 {[%emt 0:00:21]} 3. g3 {[%emt 0:00:06]} Bb4+ {[%emt 0:00:16]} 4. Bd2 {[%emt 0:00:06]} Qe7 {[%emt 0:00:06]} 5. Bg2 {[%emt 0:00:06]} O-O {[%emt 0:01:05]} 6. Nf3 {[%emt 0:00:39]} Nc6 {[%emt 0:01:08]} 7. Nc3 {[%emt 0:01:45]} d6 {[%emt 0:00:29]} 8. O-O {[%emt 0:01:50]} Bxc3 {[%emt 0:00:57]} 9. Bxc3 {[%emt 0:00:31]} Ne4 {[%emt 0:01:34]} 10. Qc2 {[%emt 0:00:44]} Nxc3 {[%emt 0:01:01]} 11. Qxc3 {[%emt 0:00:05]} Bd7 {[%emt 0:02:49]} 12. b4 {[%emt 0:03:44]} a6 {[%emt 0:06:30]} 13. a4 {[%emt 0:07:21]} Rfb8 {[%emt 0:04:39]} 14. b5 {[%emt 0:04:18]} Nd8 {[%emt 0:00:18]} 15. Qb4 {[%emt 0:03:15]} c5 {[%emt 0:10:13]} 16. dxc5 {[%emt 0:00:20]} dxc5 {[%emt 0:00:01]} 17. Qc3 {[%emt 0:00:48]} f6 {[%emt 0:01:51]} 18. Bh3 {[%emt 0:10:56]} b6 {[%emt 0:04:05]} 19. Rfd1 {[%emt 0:01:23]} Rb7 {[%emt 0:03:25]} 20. Bg2 {[%emt 0:03:56]} Rbb8 {[%emt 0:01:06]} 21. Bh3 {[%emt 0:02:35]} Rb7 {[%emt 0:00:58]} 22. Rd2 {[%emt 0:01:38]} e5 {[%emt 0:00:50]} 23. Bxd7 {[%emt 0:00:28]} Rxd7 {[%emt 0:00:10]} 24. Rad1 {[%emt 0:00:04]} Rxd2 {[%emt 0:00:34]} 25. Qxd2 {[%emt 0:00:25]} Ne6 {[%emt 0:03:02]} 26. Qd6 {[%emt 0:00:36]} Kf7 {[%emt 0:06:21]} 27. Qxb6 {[%emt 0:02:07]} axb5 {[%emt 0:00:11]} 28. Qc6 {[%emt 0:03:46]} Rd8 {[%emt 0:01:31]} 29. Rxd8 {[%emt 0:00:09]} Qxd8 {[%emt 0:00:00]} 30. axb5 {[%emt 0:00:27]} Qd1+ {[%emt 0:00:41]} 31. Kg2 {[%emt 0:00:06]} Qxe2 {[%emt 0:00:06]} 32. Qd7+ {[%emt 0:00:10]} Kg6 {[%emt 0:00:58]} 33. Qxe6 {[%emt 0:00:09]} e4 {[%emt 0:01:01]} 34. Ne5+ {[%emt 0:00:23]} Kh6 {[%emt 0:00:26]} 35. Qh3+ {[%emt 0:00:56]} Kg5 {[%emt 0:00:16]} 36. Qh4+ {[%emt 0:00:13]} Kf5 {[%emt 0:00:05]} 37. Qf4+ {[%emt 0:00:23]} Ke6 {[%emt 0:00:14]} 38. Qg4+ {[%emt 0:00:09]} Qxg4 {[%emt 0:00:13]} 39. Nxg4 {[%emt 0:00:04]} f5 {[%emt 0:00:51]} 40. Ne3 {[%emt 0:00:08]} g5 {[%emt 0:00:12]} 41. Kf1 {[%emt 0:00:17]} 1-0

[Event "XLII San Sebastian Open 2019"]
[Site "San Sebastian"]
[Date "2019.04.16"]
[Round "5.11"]
[White "Iturralde Echeverria, Ivan"]
[Black "Alcazar Jimenez, Victor"]
[Result "0-1"]
[ECO "A39"]
[WhiteElo "1957"]
[BlackElo "2363"]
[Annotator "NA RC"]
[PlyCount "60"]
[EventDate "2019.04.13"]
[EventType "swiss"]
[EventCountry "ESP"]
[SourceTitle "playchess.com"]
[Source "ChessBase"]
[SourceQuality "1"]
[TimeControl "5400+30"]

1. c4 {[%emt 0:00:00]} Nf6 {[%emt 0:03:18]} 2. Nc3 {[%emt 0:00:00]} c5 {[%emt 0:00:55]} 3. g3 {[%emt 0:00:06]} g6 {[%emt 0:00:34]} 4. Bg2 {[%emt 0:00:07]} Nc6 {[%emt 0:00:22]} 5. Nf3 {[%emt 0:00:14]} Bg7 {[%emt 0:04:26]} 6. O-O {[%emt 0:00:29]} O-O {[%emt 0:00:59]} 7. d4 {[%emt 0:00:44]} cxd4 {[%emt 0:00:03]} 8. Nxd4 {[%emt 0:00:15]} a6 {[%emt 0:00:10]} 9. b3 {[%emt 0:08:20]} Nxd4 {[%emt 0:21:31]} 10. Qxd4 {[%emt 0:00:20]} d5 {[%emt 0:00:02]} 11. Bb2 {[%emt 0:08:23]} Ne4 {[%emt 0:20:02]} 12. Qd3 {[%emt 0:09:00]} Nxc3 {[%emt 0:02:16]} 13. Bxc3 {[%emt 0:00:06]} Bf5 {[%emt 0:00:12]} 14. Qd2 {[%emt 0:04:07]} d4 {[%emt 0:00:06]} 15. Ba5 {[%emt 0:05:23]} Qd7 {[%emt 0:00:48]} 16. Rad1 {[%emt 0:00:50]} e5 {[%emt 0:01:39]} 17. Bd5 {[%emt 0:07:43]} h5 {[%emt 0:02:43]} 18. Qb4 {[%emt 0:06:21]} Rab8 {[%emt 0:01:30]} 19. Bb6 {[%emt 0:03:13]} Rfe8 {[%emt 0:06:31]} 20. e3 {[%emt 0:02:00]} Bh3 {[%emt 0:10:40]} 21. Rfe1 {[%emt 0:03:43]} e4 {[%emt 0:00:12]} 22. exd4 {[%emt 0:01:25]} Bg4 {[%emt 0:00:37]} 23. Qd2 {[%emt 0:12:00]} Bf3 {[%emt 0:02:22]} 24. Re3 {[%emt 0:01:13]} Bh6 {[%emt 0:02:04]} 25. Rxf3 {[%emt 0:02:59]} Bxd2 {[%emt 0:00:03]} 26. Rxf7 {[%emt 0:00:55]} Qxd5 {[%emt 0:00:02]} 27. cxd5 {[%emt 0:00:45]} e3 {[%emt 0:00:02]} 28. fxe3 {[%emt 0:01:47]} Bxe3+ {[%emt 0:00:02]} 29. Rf2 {[%emt 0:00:10]} Rf8 {[%emt 0:00:10]} 30. Rdf1 {[%emt 0:00:05]} Rxf2 {[%emt 0:00:13]} 0-1

[Event "XLII San Sebastian Open 2019"]
[Site "San Sebastian"]
[Date "2019.04.16"]
[Round "5.12"]
[White "Berdote Alonso, Carlos"]
[Black "Randazzo, Adrian"]
[Result "0-1"]
[ECO "D45"]
[WhiteElo "1879"]
[BlackElo "2248"]
[Annotator "NA"]
[PlyCount "60"]
[EventDate "2019.04.13"]
[EventType "swiss"]
[EventCountry "ESP"]
[SourceTitle "playchess.com"]
[Source "ChessBase"]
[SourceQuality "1"]
[TimeControl "5400+30"]

1. d4 {[%emt 0:00:00]} d5 {[%emt 0:00:00]} 2. c4 {[%emt 0:00:24]} e6 {[%emt 0:00:15]} 3. Nf3 {[%emt 0:00:20]} Nf6 {[%emt 0:01:07]} 4. Nc3 {[%emt 0:02:29]} c6 {[%emt 0:04:45]} 5. e3 {[%emt 0:03:13]} Bd6 {[%emt 0:00:50]} 6. Bd3 {[%emt 0:04:20]} dxc4 {[%emt 0:00:14]} 7. Bxc4 {[%emt 0:00:36]} b5 {[%emt 0:01:39]} 8. Bd3 {[%emt 0:03:33]} Nbd7 {[%emt 0:01:31]} 9. O-O {[%emt 0:09:24]} O-O {[%emt 0:01:08]} 10. Qc2 {[%emt 0:20:38]} Bb7 {[%emt 0:02:39]} 11. Rd1 {[%emt 0:05:22]} Qe7 {[%emt 0:01:55]} 12. Bd2 {[%emt 0:13:51]} a6 {[%emt 0:01:59]} 13. Rac1 {[%emt 0:04:34]} Rac8 {[%emt 0:03:11]} 14. Qb1 {[%emt 0:00:33]} h6 {[%emt 0:01:53]} 15. a3 {[%emt 0:06:18]} c5 {[%emt 0:01:21]} 16. e4 {[%emt 0:03:54]} cxd4 {[%emt 0:02:20]} 17. Nxd4 {[%emt 0:00:33]} Ng4 {[%emt 0:23:45]} 18. h3 {[%emt 0:07:20]} Bh2+ {[%emt 0:10:07]} 19. Kf1 {[%emt 0:00:46]} Nxf2 {[%emt 0:01:49]} 20. Kxf2 {[%emt 0:02:27]} Qh4+ {[%emt 0:00:10]} 21. Kf1 {[%emt 0:02:50]} f5 {[%emt 0:02:15]} 22. Nf3 {[%emt 0:03:06]} fxe4 {[%emt 0:00:32]} 23. Bxe4 {[%emt 0:00:31]} Rxf3+ {[%emt 0:04:04]} 24. Bxf3 {[%emt 0:01:07]} Bxf3 {[%emt 0:00:21]} 25. gxf3 {[%emt 0:02:27]} Qxh3+ {[%emt 0:00:24]} 26. Ke2 {[%emt 0:01:04]} Qg2+ {[%emt 0:00:46]} 27. Ke3 {[%emt 0:00:57]} Bf4+ {[%emt 0:02:25]} 28. Kxf4 {[%emt 0:00:33]} Rf8+ {[%emt 0:00:04]} 29. Ke4 {[%emt 0:00:38]} Qxf3+ {[%emt 0:00:05]} 30. Kd4 {[%emt 0:00:10]} e5# 0-1

[Event "XLII San Sebastian Open 2019"]
[Site "San Sebastian"]
[Date "2019.04.17"]
[Round "6.3"]
[White "Del Rio De Angelis, Salvador G."]
[Black "Alfaro Garcia del Cerro, Juan L"]
[Result "1-0"]
[ECO "D86"]
[WhiteElo "2457"]
[BlackElo "2151"]
[Annotator "RC"]
[PlyCount "81"]
[EventDate "2019.04.13"]
[EventType "swiss"]
[EventCountry "ESP"]
[SourceTitle "playchess.com"]
[Source "ChessBase"]
[SourceQuality "1"]
[TimeControl "5400+30"]

1. d4 {[%emt 0:00:00]} Nf6 {[%emt 0:00:00]} 2. c4 {[%emt 0:00:00]} g6 {[%emt 0:00:00]} 3. Nc3 {[%emt 0:00:00]} d5 {[%emt 0:00:00]} 4. cxd5 {[%emt 0:00:16]} Nxd5 {[%emt 0:00:00]} 5. e4 {[%emt 0:00:08]} Nxc3 {[%emt 0:00:12]} 6. bxc3 {[%emt 0:00:13]} Bg7 {[%emt 0:00:04]} 7. Bc4 {[%emt 0:00:07]} c5 {[%emt 0:00:15]} 8. Ne2 {[%emt 0:00:13]} Nc6 {[%emt 0:00:09]} 9. d5 {[%emt 0:00:08]} Na5 {[%emt 0:07:17]} 10. Bd3 {[%emt 0:00:19]} e6 {[%emt 0:01:48]} 11. Bb5+ {[%emt 0:04:00]} Bd7 {[%emt 0:02:06]} 12. Qa4 {[%emt 0:00:08]} b6 {[%emt 0:01:18]} 13. dxe6 {[%emt 0:00:36]} fxe6 {[%emt 0:00:39]} 14. Bh6 {[%emt 0:00:15]} Bxh6 {[%emt 0:02:56]} 15. Rd1 {[%emt 0:00:10]} O-O {[%emt 0:01:22]} 16. Bxd7 {[%emt 0:00:08]} Qe7 {[%emt 0:01:22]} 17. O-O {[%emt 0:00:28]} Rad8 {[%emt 0:03:23]} 18. f4 {[%emt 0:00:48]} Nc4 {[%emt 0:02:06]} 19. Qxc4 {[%emt 0:05:12]} Rxd7 {[%emt 0:01:41]} 20. e5 {[%emt 0:04:30]} Rfd8 {[%emt 0:08:05]} 21. Rde1 {[%emt 0:00:26]} Qf7 {[%emt 0:07:37]} 22. Ng3 {[%emt 0:02:09]} Rd5 {[%emt 0:04:02]} 23. Ne4 {[%emt 0:03:45]} Bg7 {[%emt 0:01:15]} 24. Nd6 {[%emt 0:06:50]} Qd7 {[%emt 0:00:57]} 25. h4 {[%emt 0:04:54]} Bf8 {[%emt 0:02:17]} 26. Ne4 {[%emt 0:02:54]} Be7 {[%emt 0:00:28]} 27. h5 {[%emt 0:01:25]} Rd3 {[%emt 0:04:28]} 28. Nd6 {[%emt 0:02:33]} Rd2 {[%emt 0:02:46]} 29. hxg6 {[%emt 0:00:25]} Bxd6 {[%emt 0:11:01]} 30. exd6 {[%emt 0:05:10]} hxg6 {[%emt 0:01:09]} 31. f5 {[%emt 0:05:27]} b5 {[%emt 0:03:06]} 32. Qg4 {[%emt 0:01:45]} exf5 {[%emt 0:00:22]} 33. Qxg6+ {[%emt 0:00:09]} Qg7 {[%emt 0:00:17]} 34. Qe6+ {[%emt 0:04:51]} Kh8 {[%emt 0:01:14]} 35. Rf2 {[%emt 0:00:19]} R2xd6 {[%emt 0:03:54]} 36. Qxf5 {[%emt 0:00:07]} Qxc3 {[%emt 0:03:01]} 37. Qh5+ {[%emt 0:01:28]} Kg8 {[%emt 0:00:34]} 38. Re8+ {[%emt 0:01:33]} Rxe8 {[%emt 0:03:12]} 39. Qxe8+ {[%emt 0:00:06]} Kh7 {[%emt 0:00:32]} 40. Qe7+ {[%emt 0:00:12]} Qg7 {[%emt 0:00:21]} 41. Qxd6 {[%emt 0:00:10]} 1-0

[Event "XLII San Sebastian Open 2019"]
[Site "San Sebastian"]
[Date "2019.04.17"]
[Round "6.5"]
[White "Sanchez Arevalo, Luis"]
[Black "Pulvett Marin, Daniel Eduardo"]
[Result "0-1"]
[ECO "A48"]
[WhiteElo "2020"]
[BlackElo "2468"]
[Annotator "RC"]
[PlyCount "61"]
[EventDate "2019.04.13"]
[EventType "swiss"]
[EventCountry "ESP"]
[SourceTitle "playchess.com"]
[Source "ChessBase"]
[SourceQuality "1"]
[TimeControl "5400+30"]

1. d4 Nf6 2. Nf3 g6 3. Bg5 Bg7 4. c3 O-O 5. Nbd2 d6 6. e4 c5 7. dxc5 dxc5 8. Bc4 Nc6 9. O-O Qc7 10. Qc2 Nh5 11. Rfe1 h6 12. Be3 Na5 13. Bf1 Be6 14. Nb3 Nxb3 15. axb3 Bg4 16. Nd2 a6 17. Be2 Nf6 18. Bxg4 Nxg4 19. Nf1 e6 20. h3 Nf6 21. Qc1 Kh7 22. Bf4 Qc6 23. Qc2 Rad8 24. Rad1 Rxd1 25. Qxd1 Nxe4 26. Qf3 f5 27. Nd2 Qd5 28. Nxe4 fxe4 29. Qxe4 Qxb3 30. Re2 Rxf4 31. Re3 0-1

[Event "XLII San Sebastian Open 2019"]
[Site "San Sebastian"]
[Date "2019.04.18"]
[Round "7.1"]
[White "Del Rio De Angelis, Salvador G."]
[Black "Vazquez Igarza, Renier"]
[Result "1/2-1/2"]
[ECO "E46"]
[WhiteElo "2457"]
[BlackElo "2548"]
[Annotator "ChessBase"]
[PlyCount "114"]
[EventDate "2019.04.13"]
[EventType "swiss"]
[EventCountry "ESP"]
[SourceTitle "playchess.com"]
[Source "ChessBase"]
[SourceQuality "1"]
[TimeControl "5400+30"]

1. d4 {[%emt 0:00:12]} Nf6 {[%emt 0:01:14]} 2. c4 {[%emt 0:00:13]} e6 {[%emt 0:00:07]} 3. Nc3 {[%emt 0:00:15]} Bb4 {[%emt 0:00:09]} 4. e3 {[%emt 0:00:17]} O-O {[%emt 0:00:09]} 5. Nge2 {[%emt 0:00:26]} d5 {[%emt 0:00:34]} 6. a3 {[%emt 0:00:17]} Be7 {[%emt 0:00:14]} 7. cxd5 {[%emt 0:00:20]} exd5 {[%emt 0:00:43]} 8. Nf4 {[%emt 0:00:17]} b6 {[%emt 0:06:39]} 9. b4 {[%emt 0:02:45]} c6 {[%emt 0:00:58]} 10. Bd3 {[%emt 0:02:49]} Ba6 {[%emt 0:02:07]} 11. O-O {[%emt 0:06:14]} Bd6 {[%emt 0:09:44]} 12. f3 {[%emt 0:01:19]} Re8 {[%emt 0:04:27]} 13. Ra2 {[%emt 0:09:33]} Bc4 {[%emt 0:07:00]} 14. Raf2 {[%emt 0:00:54]} a5 {[%emt 0:05:01]} 15. b5 {[%emt 0:02:52]} Bxf4 {[%emt 0:00:39]} 16. exf4 {[%emt 0:00:06]} cxb5 {[%emt 0:00:18]} 17. Nxb5 {[%emt 0:00:44]} Qd7 {[%emt 0:02:09]} 18. Rb2 {[%emt 0:00:28]} Nc6 {[%emt 0:03:12]} 19. f5 {[%emt 0:01:30]} Nb4 {[%emt 0:02:33]} 20. Bxc4 {[%emt 0:13:22]} dxc4 {[%emt 0:01:21]} 21. Qa4 {[%emt 0:00:07]} Nfd5 {[%emt 0:06:18]} 22. Nc3 {[%emt 0:00:25]} Qxa4 {[%emt 0:08:58]} 23. Nxa4 {[%emt 0:00:09]} Nd3 {[%emt 0:05:40]} 24. Rb5 {[%emt 0:00:12]} Rad8 {[%emt 0:00:54]} 25. Bd2 {[%emt 0:05:11]} Re2 {[%emt 0:04:53]} 26. Rd1 {[%emt 0:00:13]} Rde8 {[%emt 0:03:26]} 27. h4 {[%emt 0:02:08]} N5f4 {[%emt 0:03:03]} 28. Bxf4 {[%emt 0:00:14]} Nxf4 {[%emt 0:00:02]} 29. Re5 {[%emt 0:00:11]} b5 {[%emt 0:05:36]} 30. g3 {[%emt 0:01:33]} R2xe5 {[%emt 0:03:12]} 31. dxe5 {[%emt 0:00:08]} Nd3 {[%emt 0:00:49]} 32. Nb6 {[%emt 0:00:42]} Rxe5 {[%emt 0:01:03]} 33. a4 {[%emt 0:00:24]} h5 {[%emt 0:02:03]} 34. Kf1 {[%emt 0:01:57]} Nb2 {[%emt 0:04:49]} 35. Rd8+ {[%emt 0:04:18]} Kh7 {[%emt 0:00:01]} 36. Nd7 {[%emt 0:00:10]} Rxf5 {[%emt 0:00:16]} 37. axb5 {[%emt 0:00:16]} Rxb5 {[%emt 0:01:57]} 38. g4 {[%emt 0:00:05]} hxg4 {[%emt 0:00:19]} 39. fxg4 {[%emt 0:00:07]} Kg6 {[%emt 0:00:59]} 40. Ke2 {[%emt 0:00:21]} a4 {[%emt 0:00:30]} 41. Kd2 {[%emt 0:02:40]} a3 {[%emt 0:00:52]} 42. Nf8+ {[%emt 0:00:16]} Kf6 43. Re8 {[%emt 0:01:40]} Rd5+ {[%emt 0:02:11]} 44. Kc2 {[%emt 0:00:57]} g6 {[%emt 0:01:45]} 45. Nh7+ {[%emt 0:01:03]} Kg7 {[%emt 0:00:01]} 46. Ng5 {[%emt 0:00:08]} Nd3 {[%emt 0:01:55]} 47. Ra8 Nb4+ {[%emt 0:01:14]} 48. Kc3 {[%emt 0:03:10]} Nc6 49. Kxc4 {[%emt 0:00:58]} Ra5 {[%emt 0:00:42]} 50. Rxa5 {[%emt 0:00:05]} Nxa5+ {[%emt 0:00:30]} 51. Kc3 {[%emt 0:00:07]} f5 {[%emt 0:00:28]} 52. gxf5 {[%emt 0:01:51]} gxf5 {[%emt 0:00:01]} 53. Nh3 {[%emt 0:00:32]} Kf6 {[%emt 0:00:30]} 54. Nf4 {[%emt 0:02:14]} Ke5 {[%emt 0:00:15]} 55. Ng6+ {[%emt 0:00:09]} Kf6 {[%emt 0:00:47]} 56. Nf4 {[%emt 0:00:06]} Kf7 {[%emt 0:00:11]} 57. Kc2 {[%emt 0:00:21]} Kf6 {[%emt 0:00:49]} 1/2-1/2